fUSD/lending_fUSD_20240205
["ID","MTS","AMOUNT","RATE_DAILY","PERIOD"]
[313304720,1707127863787,-500.0,0.00043561,7]
[313304721,1707127863796,-500.0,0.00043561,7]
[313304722,1707127863805,-500.0,0.00043561,30]
[313304723,1707127863815,-500.0,0.00043561,7]
[313304724,1707127863824,-500.0,0.00043561,7]
[313304725,1707127863833,-500.0,0.00043561,7]
[313304726,1707127863842,-500.0,0.00043561,7]
[313304727,1707127863851,-500.0,0.00043561,2]
[313304728,1707127863860,-500.0,0.00043561,7]
[313304729,1707127863869,-500.0,0.00043561,7]
[313304730,1707127863879,-693.27,0.00043561,7]
[313304731,1707127863888,-500.0,0.00043561,7]
[313304732,1707127863897,-500.0,0.00043561,7]
[313304733,1707127863906,-500.0,0.00043561,7]
[313304734,1707127863915,-500.0,0.00043561,7]
[313304735,1707127863924,-500.0,0.00043561,7]
[313304736,1707127863933,-500.0,0.00043561,7]
[313304737,1707127863942,-500.0,0.00043561,7]
[313304738,1707127863952,-500.0,0.00043561,7]
[313304739,1707127863961,-500.0,0.00043561,7]
[313304740,1707127863970,-500.0,0.00043561,7]
[313304741,1707127863980,-630.09,0.00043561,7]
[313304742,1707127863989,-500.0,0.00043561,7]
[313304743,1707127863999,-500.0,0.00043561,7]
[313304744,1707127864008,-500.0,0.00043561,7]
[313304745,1707127864018,-500.0,0.00043561,7]
[313304746,1707127864028,-500.0,0.00043561,7]
[313304747,1707127864037,-500.0,0.00043561,7]
[313304748,1707127864046,-500.0,0.00043561,7]
[313304749,1707127864056,-500.0,0.00043561,7]
[313304750,1707127864065,-500.0,0.00043561,20]
[313304751,1707127864075,-500.0,0.00043561,7]
[313304752,1707127864084,-502.57283296,0.00043561,7]
[313304753,1707127864093,-500.0,0.00043561,7]
[313304754,1707127864103,-500.0,0.00043561,7]
[313304755,1707127864112,-500.0,0.00043561,7]
[313304756,1707127864122,-500.0,0.00043561,7]
[313304757,1707127864132,-182.71259555,0.00043561,7]
[313304758,1707127864141,-500.0,0.00043561,7]
[313304759,1707127864151,-500.0,0.00043561,7]
[313304760,1707127864160,-557.62152022,0.00043561,7]
[313304761,1707127864169,-500.0,0.00043561,7]
[313304762,1707127864180,-592.06132621,0.00043561,7]
[313304763,1707127864191,-500.0,0.00043561,7]
[313304764,1707127864200,-309.19766504,0.00043561,7]
[313304765,1707127864209,-500.0,0.00043561,7]
[313304766,1707127864219,-500.0,0.00043561,7]
[313304767,1707127864229,-469.2371936,0.00043561,5]
[313304768,1707127864238,-500.0,0.00043561,7]
[313304769,1707127864247,-500.0,0.00043561,7]
[313304770,1707127864256,-500.0,0.00043561,7]
[313304771,1707127864266,-500.0,0.00043561,7]
[313304772,1707127864276,-1000.0,0.00043561,30]
[313304773,1707127864285,-500.0,0.00043561,7]
[313304774,1707127864295,-500.0,0.00043561,7]
[313304775,1707127864304,-569.71,0.00043561,7]
[313304776,1707127864313,-500.0,0.00043561,7]
[313304777,1707127864322,-500.0,0.00043561,2]
[313304778,1707127864332,-500.0,0.00043561,7]
[313304779,1707127864341,-596.64106663,0.00043561,7]
[313304780,1707127864350,-500.0,0.00043561,7]
[313304781,1707127864359,-237.74578482,0.00043561,7]
[313304782,1707127864369,-500.0,0.00043561,7]
[313304783,1707127864378,-500.0,0.00043561,7]
[313304784,1707127864387,-500.0,0.00043561,7]
[313304785,1707127864396,-913.14,0.00043561,7]
[313304786,1707127864405,-622.14,0.00043561,7]
[313304787,1707127864415,-500.0,0.00043561,7]
[313304788,1707127864423,-429.15357933,0.00043561,7]
[313304789,1707127864433,-399.8919241,0.00043561,7]
[313304790,1707127864442,-500.0,0.00043561,7]
[313304791,1707127864451,-500.0,0.00043561,7]
[313304792,1707127864460,-563.13,0.00043561,7]
[313304793,1707127864469,-500.0,0.00043561,7]
[313304794,1707127864478,-869.02,0.00043561,7]
[313304795,1707127864488,-500.0,0.00043561,7]
[313304796,1707127864497,-500.0,0.00043561,7]
[313304797,1707127864506,-1336.9,0.00043561,7]
[313304798,1707127864515,-500.0,0.00043561,7]
[313304799,1707127864525,-1664.03,0.00043561,7]
[313304800,1707127864534,-500.0,0.00043561,7]
[313304801,1707127864543,-500.0,0.00043561,7]
[313304802,1707127864553,-522.17,0.00043561,7]
[313304803,1707127864562,-911.82,0.00043561,7]
[313304804,1707127864571,-876.24,0.00043561,7]
[313304805,1707127864580,-500.0,0.00043561,7]
[313304806,1707127864589,-1208.95,0.00043561,7]
[313304807,1707127864599,-500.0,0.00043561,7]
[313304808,1707127864608,-500.0,0.00043561,7]
[313304809,1707127864617,-500.0,0.00043561,7]
[313304810,1707127864626,-2208.28,0.00043561,5]
[313304811,1707127864636,-991.16,0.00043561,7]
[313304812,1707127864645,-500.0,0.00043561,7]
[313304813,1707127864655,-500.0,0.00043561,7]
[313304814,1707127864665,-500.0,0.00043561,7]
[313304815,1707127864674,-4873.25,0.00043561,7]
[313304816,1707127864683,-500.0,0.00043561,7]
[313304817,1707127864692,-500.0,0.00043561,7]
[313304818,1707127864702,-500.0,0.00043561,7]
[313304819,1707127864711,-1507.15,0.00043561,7]
[313304820,1707127864720,-500.0,0.00043561,7]
[313304821,1707127864729,-500.0,0.00043561,7]
[313304822,1707127864739,-500.0,0.00043561,7]
[313304823,1707127864748,-724.44,0.00043561,7]
[313304824,1707127864757,-890.52,0.00043561,7]
[313304825,1707127864766,-500.0,0.00043561,7]
[313304826,1707127864779,-829.46,0.00043561,7]
[313304827,1707127864788,-611.71,0.00043561,7]
[313304828,1707127864797,-500.0,0.00043561,7]
[313304829,1707127864807,-500.0,0.00043561,7]
[313304830,1707127864816,-556.31,0.00043561,7]
[313304831,1707127864825,-687.93,0.00043561,7]
[313304832,1707127864834,-832.51,0.00043561,7]
[313304833,1707127864843,-871.11,0.00043561,7]
[313304834,1707127864852,-500.0,0.00043561,7]
[313304835,1707127864862,-500.0,0.00043561,7]
[313304836,1707127864871,-1243.36,0.00043561,7]
[313304837,1707127864880,-500.0,0.00043561,7]
[313304838,1707127864890,-3012.41,0.00043561,7]
[313304839,1707127864899,-500.0,0.00043561,7]
[313304840,1707127864909,-500.0,0.00043561,7]
[313304841,1707127864918,-590.23,0.00043561,7]
[313304842,1707127864927,-500.0,0.00043561,7]
[313304843,1707127864936,-500.0,0.00043561,7]
[313304844,1707127864946,-500.0,0.00043561,7]
[313304845,1707127864956,-500.0,0.00043561,7]
[313304846,1707127864965,-3014.28,0.00043561,7]
[313304847,1707127865080,-621.05,0.00043561,7]
[313304848,1707127865092,-589.53,0.00043561,7]
[313304849,1707127865103,-500.0,0.00043561,7]
[313304850,1707127865114,-500.0,0.00043561,7]
[313304851,1707127865124,-163.15684699,0.00043561,7]
[313304852,1707127865135,-830.56,0.00043561,7]
[313304853,1707127865145,-1902.12,0.00043561,7]
[313304854,1707127865155,-1035.44,0.00043561,7]
[313304855,1707127865165,-2847.02,0.00043561,7]
[313304856,1707127865176,-807.95,0.00043561,7]
[313304857,1707127865191,-500.0,0.00043561,7]
[313304858,1707127865201,-500.0,0.00043561,7]
[313304859,1707127865212,-500.0,0.00043561,7]
[313304860,1707127865223,-216.82206351,0.00043561,7]
[313304861,1707127865233,-500.0,0.00043561,7]
[313304862,1707127865243,-500.0,0.00043561,7]
[313304863,1707127865253,-536.86,0.00043561,7]
[313304864,1707127865264,-2651.98,0.00043561,7]
[313304865,1707127865276,-500.0,0.00043561,7]
[313304866,1707127865288,-500.0,0.00043561,7]
[313304867,1707127865298,-1214.43,0.00043561,7]
[313304868,1707127865307,-500.0,0.00043561,7]
[313304869,1707127865317,-753.45,0.00043561,7]
[313304870,1707127865326,-500.0,0.00043561,7]
[313304871,1707127865336,-500.0,0.00043561,7]
[313304872,1707127865346,-622.87,0.00043561,7]
[313304873,1707127865356,-1152.32,0.00043561,7]
[313304874,1707127865366,-1196.94,0.00043561,7]
[313304875,1707127865375,-500.0,0.00043561,7]
[313304876,1707127865385,-188.20347329,0.00043561,7]
[313304877,1707127865395,-500.0,0.00043561,7]
[313304878,1707127865405,-500.0,0.00043561,7]
[313304879,1707127865414,-500.0,0.00043561,7]
[313304880,1707127865423,-530.27,0.00043561,7]
[313304881,1707127865433,-525.01,0.00043561,7]
[313304882,1707127865443,-500.0,0.00043561,7]
[313304883,1707127865452,-285.04,0.00043561,7]
[313304884,1707127865461,-500.0,0.00043561,7]
[313304885,1707127865471,-1136.73,0.00043561,7]
[313304886,1707127865480,-500.0,0.00043561,7]
[313304887,1707127865490,-500.0,0.00043561,7]
[313304888,1707127865500,-500.0,0.00043561,7]
[313304889,1707127865510,-500.0,0.00043561,7]
[313304890,1707127865519,-768.14,0.00043561,7]
[313304891,1707127865532,-500.0,0.00043561,7]
[313304892,1707127865541,-500.0,0.00043561,7]
[313304893,1707127865550,-224.07700653,0.00043561,7]
[313304894,1707127865559,-1043.92,0.00043561,7]
[313304895,1707127865569,-717.13,0.00043561,7]
[313304896,1707127865578,-500.0,0.00043561,7]
[313304897,1707127865587,-500.0,0.00043561,7]
[313304898,1707127865597,-500.0,0.00043561,7]
[313304899,1707127865606,-500.0,0.00043561,7]
[313304900,1707127865615,-567.71,0.00043561,7]
[313304901,1707127865625,-2573.61,0.00043561,7]
[313304902,1707127865635,-732.21,0.00043561,7]
[313304903,1707127865645,-2569.02,0.00043561,7]
[313304904,1707127865654,-500.0,0.00043561,7]
[313304905,1707127865664,-585.77,0.00043561,7]
[313304906,1707127865673,-180.45585344,0.00043561,7]
[313304907,1707127865684,-500.0,0.00043561,7]
[313304908,1707127865693,-500.0,0.00043561,7]
[313304909,1707127865703,-500.0,0.00043561,7]
[313304910,1707127865712,-500.0,0.00043561,7]
[313304911,1707127865721,-500.0,0.00043561,7]
[313304912,1707127865731,-500.0,0.00043561,7]
[313304913,1707127865740,-500.0,0.00043561,7]
[313304914,1707127865751,-500.0,0.00043561,7]
[313304915,1707127865761,-500.0,0.00043561,7]
[313304916,1707127865771,-500.0,0.00043561,7]
[313304917,1707127865783,-500.0,0.00043561,7]
[313304918,1707127865794,-500.0,0.00043561,7]
[313304919,1707127865805,-500.0,0.00043561,7]
[313304920,1707127865815,-500.0,0.00043561,7]
[313304921,1707127865826,-520.79,0.00043561,7]
[313304922,1707127865836,-500.0,0.00043561,7]
[313304923,1707127865846,-500.0,0.00043561,7]
[313304924,1707127865857,-1414.46,0.00043561,7]
[313304925,1707127865867,-655.39,0.00043561,7]
[313304926,1707127865878,-500.0,0.00043561,7]
[313304927,1707127865888,-842.26,0.00043561,7]
[313304928,1707127865899,-500.0,0.00043561,7]
[313304929,1707127865909,-500.0,0.00043561,7]
[313304930,1707127865919,-664.86,0.00043561,7]
[313304931,1707127865929,-500.0,0.00043561,7]
[313304932,1707127865939,-1278.72,0.00043561,7]
[313304933,1707127865949,-500.0,0.00043561,7]
[313304934,1707127865959,-606.87,0.00043561,7]
[313304935,1707127865969,-500.0,0.00043561,7]
[313304936,1707127865980,-850.58,0.00043561,7]
[313304937,1707127865990,-776.81,0.00043561,7]
[313304938,1707127866000,-500.0,0.00043561,7]
[313304939,1707127866010,-500.0,0.00043561,7]
[313304940,1707127866020,-500.0,0.00043561,7]
[313304941,1707127866031,-685.65,0.00043561,7]
[313304942,1707127866041,-482.50243433,0.00043561,7]
[313304943,1707127866051,-500.0,0.00043561,7]
[313304944,1707127866060,-524.3,0.00043561,7]
[313304945,1707127866070,-500.0,0.00043561,7]
[313304946,1707127866084,-500.0,0.00043561,7]
[313304947,1707127866094,-500.0,0.00043561,7]
[313304948,1707127866104,-500.0,0.00043561,7]
[313304949,1707127866114,-1060.32,0.00043561,7]
[313304950,1707127866124,-1737.35,0.00043561,7]
[313304951,1707127866134,-500.0,0.00043561,7]
[313304952,1707127866144,-500.0,0.00043561,7]
[313304953,1707127866155,-500.0,0.00043561,7]
[313304954,1707127866165,-500.0,0.00043561,7]
[313304955,1707127866175,-500.0,0.00043561,7]
[313304956,1707127866187,-781.78,0.00043561,7]
[313304957,1707127866199,-500.0,0.00043561,7]
[313304958,1707127866208,-500.0,0.00043561,7]
[313304959,1707127866218,-824.44,0.00043561,7]
[313304960,1707127866229,-500.0,0.00043561,7]
[313304961,1707127866239,-500.0,0.00043561,7]
[313304962,1707127866249,-500.0,0.00043561,7]
[313304963,1707127866258,-500.0,0.00043561,7]
[313304964,1707127866268,-500.0,0.00043561,7]
[313304965,1707127866280,-3430.5,0.00043561,7]
[313304966,1707127866289,-500.0,0.00043561,7]
[313304967,1707127866298,-500.0,0.00043561,7]
[313304968,1707127866308,-500.0,0.00043561,7]
[313304969,1707127866318,-1266.59,0.00043561,7]
[313304970,1707127866327,-2414.76,0.00043561,5]
[313304971,1707127866336,-500.0,0.00043561,7]
[313304972,1707127866346,-500.0,0.00043561,7]
[313304973,1707127866355,-585.33,0.00043561,7]
[313304974,1707127866364,-1135.81,0.00043561,7]
[313304975,1707127866374,-500.0,0.00043561,7]
[313304976,1707127866384,-1049.13,0.00043561,7]
[313304977,1707127866393,-10927.31,0.00043561,7]
[313304978,1707127866403,-500.0,0.00043561,7]
[313304979,1707127866412,-500.0,0.00043561,7]
[313304980,1707127866421,-1000.0,0.00043586,2]
[313304981,1707127866431,-1000.0,0.00043586,2]
[313304982,1707127866441,-1000.0,0.00043586,2]
[313304983,1707127866452,-1000.0,0.00043586,2]
[313304984,1707127866462,-1000.0,0.00043586,2]
[313304985,1707127866471,-175.0365,0.00043586,2]
[313304986,1707127866481,-501.97,0.000437,11]
[313304987,1707127866491,-611.0,0.0004379,2]
[313304988,1707127866500,-537.0,0.0004379,2]
[313304989,1707127866510,-259.791067,0.000438,19]
[313304990,1707127866519,-151.5005338,0.00043804,2]
[313304991,1707127866530,-3309.32935427,0.00043804,2]
[313304992,1707127866539,-9188.9534979,0.0004381,2]
[313304993,1707127866548,-279.4217696,0.0004381,2]
[313304994,1707127866558,-184.1761304,0.0004381,2]
[313304995,1707127866654,-1041.5252668,0.00043813,2]
[313304996,1707127866664,-338.23569729,0.00043813,30]
[313304997,1707127866674,-4499.68676317,0.00043814,4]
[313304998,1707127866683,-2000.0,0.00043815,7]
[313304999,1707127866693,-382.69013525,0.00043833,4]
[313305000,1707127866702,-487.5422361,0.00043833,7]
[313305001,1707127866711,-229.77214613,0.00043833,4]
[313305002,1707127866721,-1059.83118801,0.00043833,4]
[313305003,1707127866730,-1374.81657454,0.00043834,4]
[313305004,1707127866739,-292.71353973,0.00043834,4]
[313305005,1707127866748,-313.57682683,0.00043834,2]
[313305006,1707127866757,-2070.38,0.00043834,62]
[313305007,1707127866766,-500.0,0.00043834,7]
[313305008,1707127866776,-530.06354345,0.00043835,7]
[313305009,1707127866785,-173.0182175,0.00043835,7]
[313305010,1707127866794,-666.0,0.00043835,2]
[313305011,1707127866803,-1757.63,0.00043836,15]
[313305012,1707127866812,-152.3,0.00043836,2]
[313305013,1707127866821,-212.07754128,0.00043836,7]
[313305014,1707127866830,-168.8335665,0.00043844,30]
[313305015,1707127866839,-152.08406194,0.00043857,21]
[313305016,1707127866848,-4049.0,0.0004389,2]
[313305017,1707127866858,-2813.0,0.0004389,2]
[313305018,1707127866867,-5544.46217009,0.000439,18]
[313305019,1707127866876,-7415.6500198,0.0004397,2]
[313305020,1707127866886,-5642.3465418,0.0004397,2]
[313305021,1707127866895,-279.4217696,0.0004397,2]
[313305022,1707127866904,-279.4217696,0.0004397,2]
[313305023,1707127866913,-184.1761304,0.0004397,2]
[313305024,1707127866923,-184.1761304,0.0004397,2]
[313305025,1707127866933,-208.0,0.00043975,10]
[313305026,1707127866943,-171.38194321,0.00043999,4]
[313305027,1707127866952,-225.43379714,0.00043999,4]
[313305028,1707127866962,-100000.0,0.00044,24]
[313305029,1707127866971,-9851.54212689,0.00044,30]
[313305030,1707127866980,-247.23947113,0.00044,30]
[313305031,1707127866990,-197.27201087,0.00044,30]
[313305032,1707127867000,-38591.7886,0.00044,2]
[313305033,1707127867009,-50168.0047,0.00044,2]
[313305034,1707127867018,-298.0,0.0004419,2]
[313305035,1707127867029,-213.0,0.0004419,2]
[313305036,1707127867038,-1566.5416943,0.00044225,2]
[313305037,1707127867047,-3869.0430637,0.00044235,2]
[313305038,1707127867056,-796.3442964,0.00044264,67]
[313305039,1707127867065,-500.0,0.00044264,7]
[313305040,1707127867074,-500.0,0.00044265,7]
[313305041,1707127867083,-500.0,0.00044265,7]
[313305042,1707127867093,-500.0,0.00044265,7]
[313305043,1707127867102,-500.0,0.00044265,7]
[313305044,1707127867111,-200.69933272,0.00044265,7]
[313305045,1707127867120,-237.51404706,0.00044265,7]
[313305046,1707127867130,-500.0,0.00044265,7]
[313305047,1707127867139,-500.0,0.00044265,7]
[313305048,1707127867148,-1000.0,0.00044265,7]
[313305049,1707127867157,-1000.0,0.00044265,7]
[313305050,1707127867166,-500.0,0.00044265,7]
[313305051,1707127867175,-500.0,0.00044265,7]
[313305052,1707127867185,-500.0,0.00044265,7]
[313305053,1707127867195,-635.21699037,0.00044265,7]
[313305054,1707127867205,-500.0,0.00044265,7]
[313305055,1707127867214,-500.0,0.00044265,7]
[313305056,1707127867223,-500.0,0.00044265,7]
[313305057,1707127867232,-500.0,0.00044265,7]
[313305058,1707127867242,-500.0,0.00044265,7]
[313305059,1707127867252,-500.0,0.00044265,7]
[313305060,1707127867261,-552.2,0.00044265,7]
[313305061,1707127867270,-500.0,0.00044265,7]
[313305062,1707127867281,-500.0,0.00044265,7]
[313305063,1707127867290,-631.0143248,0.00044265,7]
[313305064,1707127867299,-500.0,0.00044265,7]
[313305065,1707127867309,-500.0,0.00044265,7]
[313305066,1707127867318,-500.0,0.00044265,7]
[313305067,1707127867327,-500.0,0.00044265,7]
[313305068,1707127867337,-246.17831201,0.00044265,7]
[313305069,1707127867346,-500.0,0.00044265,7]
[313305070,1707127867355,-500.0,0.00044265,7]
[313305071,1707127867365,-500.0,0.00044265,7]
[313305072,1707127867374,-1127.36,0.00044265,7]
[313305073,1707127867384,-500.0,0.00044265,7]
[313305074,1707127867393,-1539.46,0.00044265,7]
[313305075,1707127867402,-500.0,0.00044265,7]
[313305076,1707127867412,-824.07,0.00044265,7]
[313305077,1707127867422,-500.0,0.00044265,7]
[313305078,1707127867431,-1071.9,0.00044265,7]
[313305079,1707127867440,-500.0,0.00044265,7]
[313305080,1707127867449,-1205.02,0.00044265,7]
[313305081,1707127867458,-279.4217696,0.00044267,2]
[313305082,1707127867468,-184.1761304,0.00044267,2]
[313305083,1707127867477,-1500.0,0.00044281,2]
[313305084,1707127867487,-229.0,0.0004429,2]
[313305085,1707127867496,-159.0,0.0004429,2]
[313305086,1707127867505,-173.608905,0.00044298,30]
[313305087,1707127867514,-151.318632,0.00044298,30]
[313305088,1707127867524,-183.662559,0.00044298,2]
[313305089,1707127867533,-163.535146,0.00044298,30]
[313305090,1707127867542,-923.532087,0.00044298,30]
[313305091,1707127867551,-182.727281,0.00044298,30]
[313305092,1707127867561,-150.0,0.00044337,120]
[313305093,1707127867571,-2095.7395856,0.00044353,2]
[313305094,1707127867580,-322.4361076,0.00044353,2]
[313305095,1707127867590,-279.4217696,0.00044353,2]
[313305096,1707127867599,-279.4217696,0.00044353,2]
[313305097,1707127867608,-184.1761304,0.00044353,2]
[313305098,1707127867618,-184.1761304,0.00044353,2]
[313305099,1707127867627,-500.0,0.00044364,7]
[313305100,1707127867636,-500.0,0.00044364,7]
[313305101,1707127867644,-500.0,0.00044364,7]
[313305102,1707127867654,-500.0,0.00044364,7]
[313305103,1707127867663,-1000.0,0.00044364,7]
[313305104,1707127867673,-500.0,0.00044364,7]
[313305105,1707127867682,-500.0,0.00044364,7]
[313305106,1707127867691,-500.0,0.00044364,7]
[313305107,1707127867700,-500.0,0.00044364,7]
[313305108,1707127867710,-500.0,0.00044364,7]
[313305109,1707127867719,-500.0,0.00044364,7]
[313305110,1707127867728,-500.0,0.00044364,7]
[313305111,1707127867737,-500.0,0.00044364,7]
[313305112,1707127867746,-497.9154297,0.00044364,7]
[313305113,1707127867755,-500.0,0.00044364,7]
[313305114,1707127867764,-500.0,0.00044364,7]
[313305115,1707127867774,-154.82150377,0.00044364,7]
[313305116,1707127867783,-390.74281517,0.00044364,7]
[313305117,1707127867792,-176.75351854,0.00044364,7]
[313305118,1707127867801,-500.0,0.00044364,7]
[313305119,1707127867810,-205.60200443,0.00044364,7]
[313305120,1707127867819,-500.0,0.00044364,7]
[313305121,1707127867828,-150.70766645,0.00044364,7]
[313305122,1707127867837,-500.0,0.00044364,7]
[313305123,1707127867846,-540.45114812,0.00044364,7]
[313305124,1707127867856,-500.0,0.00044364,7]
[313305125,1707127867865,-634.50194017,0.00044364,7]
[313305126,1707127867875,-500.0,0.00044364,7]
[313305127,1707127867884,-500.0,0.00044364,7]
[313305128,1707127867893,-500.0,0.00044364,2]
[313305129,1707127867902,-654.83,0.00044364,7]
[313305130,1707127867911,-500.0,0.00044364,2]
[313305131,1707127867995,-191.00597249,0.00044364,7]
[313305132,1707127868011,-541.72740181,0.00044364,7]
[313305133,1707127868021,-500.0,0.00044364,7]
[313305134,1707127868031,-500.0,0.00044364,7]
[313305135,1707127868040,-500.0,0.00044364,7]
[313305136,1707127868051,-500.0,0.00044364,7]
[313305137,1707127868061,-500.0,0.00044364,7]
[313305138,1707127868070,-500.0,0.00044364,7]
[313305139,1707127868079,-500.0,0.00044364,7]
[313305140,1707127868089,-500.19,0.00044364,7]
[313305141,1707127868098,-500.0,0.00044364,7]
[313305142,1707127868107,-500.0,0.00044364,7]
[313305143,1707127868116,-500.0,0.00044364,7]
[313305144,1707127868126,-500.0,0.00044364,7]
[313305145,1707127868135,-500.0,0.00044364,7]
[313305146,1707127868144,-470.18673883,0.00044364,7]
[313305147,1707127868153,-500.0,0.00044364,7]
[313305148,1707127868162,-500.0,0.00044364,7]
[313305149,1707127868172,-357.26853559,0.00044364,7]
[313305150,1707127868182,-500.0,0.00044364,2]
[313305151,1707127868191,-14256.84060468,0.00044382,4]
[313305152,1707127868202,-500.0,0.00044383,7]
[313305153,1707127868211,-190.1899473,0.00044383,7]
[313305154,1707127868220,-500.0,0.00044383,7]
[313305155,1707127868230,-500.0,0.00044383,7]
[313305156,1707127868240,-513.87,0.00044383,7]
[313305157,1707127868249,-500.0,0.00044383,7]
[313305158,1707127868258,-500.0,0.00044383,7]
[313305159,1707127868267,-500.0,0.00044383,7]
[313305160,1707127868276,-500.0,0.00044383,7]
[313305161,1707127868286,-500.0,0.00044383,7]
[313305162,1707127868296,-500.0,0.00044383,7]
[313305163,1707127868305,-500.0,0.00044383,30]
[313305164,1707127868314,-500.0,0.00044383,7]
[313305165,1707127868324,-500.0,0.00044383,7]
[313305166,1707127868333,-500.0,0.00044383,7]
[313305167,1707127868342,-500.0,0.00044383,2]
[313305168,1707127868351,-500.0,0.00044383,7]
[313305169,1707127868361,-500.0,0.00044383,7]
[313305170,1707127868370,-693.27,0.00044383,7]
[313305171,1707127868379,-500.0,0.00044383,7]
[313305172,1707127868388,-500.0,0.00044383,7]
[313305173,1707127868397,-500.0,0.00044383,7]
[313305174,1707127868406,-500.0,0.00044383,7]
[313305175,1707127868416,-282.85885728,0.00044383,7]
[313305176,1707127868425,-500.0,0.00044383,7]
[313305177,1707127868434,-500.0,0.00044383,7]
[313305178,1707127868443,-500.0,0.00044383,7]
[313305179,1707127868452,-500.0,0.00044383,7]
[313305180,1707127868461,-500.0,0.00044383,7]
[313305181,1707127868470,-500.0,0.00044383,7]
[313305182,1707127868479,-606.3576171,0.00044383,7]
[313305183,1707127868488,-500.0,0.00044383,7]
[313305184,1707127868497,-500.0,0.00044383,7]
[313305185,1707127868506,-500.0,0.00044383,7]
[313305186,1707127868515,-500.0,0.00044383,7]
[313305187,1707127868524,-500.0,0.00044383,7]
[313305188,1707127868533,-500.0,0.00044383,7]
[313305189,1707127868542,-500.0,0.00044383,20]
[313305190,1707127868551,-500.0,0.00044383,7]
[313305191,1707127868560,-500.0,0.00044383,7]
[313305192,1707127868569,-500.0,0.00044383,7]
[313305193,1707127868578,-222.8614273,0.00044383,7]
[313305194,1707127868587,-500.0,0.00044383,7]
[313305195,1707127868596,-500.0,0.00044383,7]
[313305196,1707127868615,-500.0,0.00044383,7]
[313305197,1707127868630,-500.0,0.00044383,7]
[313305198,1707127868649,-500.0,0.00044383,7]
[313305199,1707127868666,-500.0,0.00044383,7]
[313305200,1707127868682,-500.0,0.00044383,7]
[313305201,1707127868699,-500.0,0.00044383,7]
[313305202,1707127868714,-500.0,0.00044383,7]
[313305203,1707127868732,-500.0,0.00044383,7]
[313305204,1707127868748,-575.11034615,0.00044383,7]
[313305205,1707127868765,-1000.0,0.00044383,30]
[313305206,1707127868786,-500.0,0.00044383,7]
[313305207,1707127868800,-500.0,0.00044383,7]
[313305208,1707127868814,-569.71,0.00044383,7]
[313305209,1707127868831,-500.0,0.00044383,7]
[313305210,1707127868844,-500.0,0.00044383,2]
[313305211,1707127868860,-600.64,0.00044383,7]
[313305212,1707127868874,-500.0,0.00044383,7]
[313305213,1707127868889,-500.0,0.00044383,7]
[313305214,1707127868904,-255.35731078,0.00044383,7]
[313305215,1707127868920,-500.0,0.00044383,7]
[313305216,1707127868935,-913.14,0.00044383,7]
[313305217,1707127868949,-622.14,0.00044383,7]
[313305218,1707127868964,-500.0,0.00044383,7]
[313305219,1707127868979,-500.0,0.00044383,7]